bitfinex-derivatives/quotes_ETHF0:USTF0_20210109
["timestamp","ask_amount","ask_price","bid_price","bid_amount"]
[1610205849028,70.43935594,1215.9,1215.3,50.0]
[1610205849229,34.00959,1215.8,1215.3,50.0]
[1610205849428,65.67936076,1215.8,1215.0,102.0848]
[1610205849629,40.38681029,1215.6,1215.0,102.0848]
[1610205849828,40.38681029,1215.6,1215.0,52.0848]
[1610205850029,40.37597227,1215.5,1215.0,52.0848]
[1610205850228,42.63687227,1215.5,1215.0,52.0848]
[1610205850628,40.33321753,1215.4,1215.0,52.0848]
[1610205851027,42.58319036,1215.5,1215.0,52.0848]
[1610205851228,4.00959,1215.1,1215.0,52.0848]
[1610205851428,6.24929,1215.1,1215.0,52.0848]
[1610205851629,6.24929,1215.1,1214.9,50.0]
[1610205852228,44.53299,1215.1,1214.9,50.0]
[1610205852428,44.53299,1215.1,1214.4,47.0253]
[1610205852630,36.24929,1215.1,1214.3,50.0]
[1610205852829,76.50340401,1215.1,1214.3,50.0]
[1610205853228,4.00959,1214.4,1214.3,50.0]
[1610205853432,6.28839,1214.4,1214.3,50.0]
[1610205854432,6.28839,1214.4,1213.9,50.0]
[1610205855232,4.00959,1214.0,1213.9,50.0]
[1610205855432,4.00959,1214.0,1213.8,52.7458]
[1610205857437,2.2788,1214.4,1213.6,54.00959]
[1610205857640,2.2788,1214.4,1213.9,50.0]
[1610205857840,2.2788,1214.4,1214.0,59.352]
[1610205858440,42.49448688,1215.1,1214.0,59.352]
[1610205858841,42.49448688,1215.1,1214.1,50.0]
[1610205859040,2.2397,1215.1,1214.1,50.0]
[1610205859240,4.00959,1214.5,1214.2,4.00959]
[1610205859440,4.00959,1214.5,1214.2,54.00959]
[1610205859640,6.02389,1214.5,1214.2,54.00959]
[1610205859843,6.02389,1214.5,1214.3,50.0]
[1610205860243,6.02389,1214.5,1214.2,54.00959]
[1610205860643,6.02389,1214.5,1214.2,4.00959]
[1610205860844,6.02389,1214.5,1214.4,8.997]
[1610205862046,6.02389,1214.5,1214.4,58.997]
[1610205862647,6.02389,1214.5,1214.4,8.997]
[1610205863148,6.02389,1214.5,1214.4,63.00659]
[1610205863447,6.02389,1214.5,1214.4,13.00659]
[1610205863848,6.02389,1214.5,1214.4,63.00659]
[1610205864648,6.02389,1214.5,1214.4,13.00659]
[1610205865050,6.02389,1214.5,1214.4,8.997]
[1610205867153,6.02389,1214.5,1214.3,50.0]
[1610205867352,67.989,1214.4,1214.3,50.0]
[1610205867554,67.989,1214.4,1213.5,50.3196]
[1610205867555,67.989,1214.4,1213.8,50.0]
[1610205867754,67.989,1214.4,1213.7,50.0]
[1610205868156,67.989,1214.4,1213.6,50.0]
[1610205868958,67.989,1214.4,1213.7,50.0]
[1610205869156,4.00959,1213.8,1213.7,50.0]
[1610205869359,4.00959,1213.8,1213.6,50.0]
[1610205869557,4.00959,1213.8,1213.7,1.25834579]
[1610205869857,4.00959,1213.8,1213.7,51.25834579]
[1610205870458,4.00959,1213.8,1213.7,1.25834579]
[1610205870858,4.00959,1213.8,1213.7,51.25834579]
[1610205873667,4.00959,1213.8,1213.7,50.0]
[1610205875068,1.677,1213.9,1213.7,50.0]
[1610205875267,4.00959,1214.0,1213.8,4.00959]
[1610205875867,4.00959,1214.0,1213.8,54.00959]
[1610205876067,4.00959,1214.0,1213.9,50.0]
[1610205878970,4.00959,1214.0,1213.7,50.0]
[1610205879171,4.00959,1213.8,1213.7,50.0]
[1610205879374,6.22819,1213.8,1213.6,50.0]
[1610205880271,6.22819,1213.8,1213.7,50.0]
[1610205881073,6.22819,1213.8,1213.6,50.0]
[1610205881472,6.22819,1213.8,1213.5,55.74609]
[1610205881672,6.22819,1213.8,1213.7,50.0]
[1610205882073,6.22819,1213.8,1213.6,50.0]
[1610205882275,2.2186,1213.8,1213.6,50.0]
[1610205882474,2.2186,1213.8,1213.7,50.0]
[1610205882874,2.2186,1213.8,1213.6,50.0]
[1610205883274,2.2186,1213.8,1213.7,54.00959]
[1610205883874,2.2186,1213.8,1213.7,4.00959]
[1610205884277,2.2186,1213.8,1213.7,108.88069]
[1610205884476,4.00959,1214.0,1213.7,108.88069]
[1610205884675,4.00959,1214.0,1213.8,50.0]
[1610205885474,4.00959,1214.0,1213.9,50.0]
[1610205885874,4.00959,1214.0,1213.8,50.0]
[1610205886275,5.85139,1214.0,1213.8,50.0]
[1610205886676,5.85139,1214.0,1213.9,50.0]
[1610205887377,5.85139,1214.0,1213.9,9.5273]
[1610205887977,5.85139,1214.0,1213.9,59.5273]
[1610205888678,5.85139,1214.0,1213.9,9.5273]
[1610205889280,5.85139,1214.0,1213.7,54.00959]
[1610205889281,5.85139,1214.0,1213.7,50.0]
[1610205889685,5.85139,1214.0,1213.9,50.0]
[1610205889981,5.85139,1214.0,1213.5,61.925]
[1610205891381,4.00959,1213.6,1213.5,61.925]
[1610205891582,5.79719,1213.6,1213.5,61.925]
[1610205892781,5.79719,1213.6,1213.2,50.0]
[1610205893385,4.00959,1213.3,1213.2,50.0]
[1610205893583,1.7876,1213.6,1213.3,102.868]
[1610205895287,1.7876,1213.6,1213.4,50.0]
[1610205895990,1.7876,1213.6,1213.4,51.25881037]
[1610205896990,1.8418,1214.0,1213.4,51.25881037]
[1610205897192,1.8418,1214.0,1213.4,50.0]
[1610205897390,4.00959,1213.5,1213.4,50.0]
[1610205897592,6.33829,1213.5,1213.4,50.0]
[1610205897790,2.3287,1213.5,1213.4,50.0]
[1610205898590,2.3287,1213.5,1213.4,51.25855208]
[1610205898794,2.2971,1213.8,1213.5,50.0]
[1610205899392,2.2971,1213.8,1213.6,4.00959]
[1610205899591,2.2971,1213.8,1213.4,1.25855208]
[1610205899792,2.2971,1213.8,1213.4,51.25855208]
[1610205900191,2.2971,1213.8,1213.5,50.0]
[1610205900392,2.2971,1213.8,1213.6,1.25854032]
[1610205901191,2.2971,1213.8,1213.6,51.25854032]
[1610205901395,4.00959,1213.7,1213.6,55.26813032]
[1610205901596,2.2971,1213.8,1213.6,55.26813032]
[1610205902998,2.0143,1214.5,1213.7,1.25832664]
[1610205903199,40.31573664,1214.8,1214.3,60.1906]
[1610205903397,4.00959,1214.6,1214.5,4.00959]
[1610205903602,4.00959,1214.6,1213.7,1.25832664]
[1610205903603,4.00959,1214.6,1214.2,53.7747]
[1610205904197,4.00959,1214.6,1213.7,1.25832664]
[1610205904398,4.00959,1214.6,1214.5,52.8717]
[1610205905498,4.00959,1214.6,1214.5,56.88129]
[1610205905698,1.6326,1214.7,1214.5,56.88129]
[1610205908902,40.3717111,1215.2,1214.5,56.88129]
[1610205909103,40.3717111,1215.2,1215.0,59.7129]
[1610205909305,40.38317636,1215.3,1215.0,59.7129]
[1610205909506,40.38317636,1215.3,1215.2,4.00959]
[1610205909707,40.40131981,1215.4,1215.2,4.00959]
[1610205909906,40.40131981,1215.4,1215.0,59.7129]
[1610205910107,40.40131981,1215.4,1213.9,32.1278]
[1610205910309,1.9461,1215.4,1214.3,47.7644]
[1610205910610,42.34568691,1215.4,1214.3,47.7644]
[1610205911410,4.00959,1215.1,1214.8,4.00959]
[1610205911610,6.54249,1215.1,1214.8,4.00959]
[1610205915525,4.00959,1214.9,1214.8,4.00959]
[1610205916126,4.00959,1214.9,1214.8,11.14989]
[1610205917027,2.5329,1215.1,1214.8,11.14989]
[1610205917428,4.00959,1215.1,1214.8,11.14989]
[1610205917628,4.00959,1215.1,1214.8,4.00959]
[1610205917830,42.29972013,1215.4,1215.0,61.722]
[1610205918231,1.9461,1215.4,1215.0,61.722]
[1610205918631,40.33672603,1215.5,1215.0,61.722]
[1610205919530,40.33672603,1215.5,1215.1,4.00959]
[1610205921134,2.32668243,1215.4,1215.1,4.00959]
[1610205921336,4.90378243,1215.4,1215.1,4.00959]
[1610205921535,4.00959,1215.2,1215.1,4.00959]
[1610205921936,4.00959,1215.2,1215.0,61.722]
[1610205922635,6.33638696,1215.2,1215.0,61.722]
[1610205923636,6.33638696,1215.2,1215.1,50.0]
[1610205924037,4.00959,1215.2,1215.1,50.0]
[1610205925342,6.33637677,1215.2,1215.1,50.0]
[1610205926143,2.32678677,1215.2,1215.1,50.0]
[1610205926542,2.32678677,1215.2,1215.0,54.00959]
[1610205926944,2.5771,1215.4,1215.0,54.00959]
[1610205926945,2.5771,1215.4,1215.2,61.9614]
[1610205927442,40.32666454,1215.8,1215.2,61.9614]
[1610205927643,44.34893971,1215.9,1215.7,4.00959]
[1610205927844,44.34893971,1215.9,1215.8,9.2344]
[1610205928046,4.00959,1215.9,1215.8,9.2344]
[1610205929846,4.00959,1215.9,1215.8,59.2344]
[1610205930250,40.34808718,1216.0,1215.8,59.2344]
[1610205930449,40.34808718,1216.0,1215.8,9.2344]
[1610205930849,57.84160816,1216.1,1215.8,59.2344]
[1610205931450,40.32193618,1216.0,1215.8,59.2344]
[1610205931650,42.23743618,1216.0,1215.9,4.00959]
[1610205932050,42.23743618,1216.0,1215.9,54.00959]
[1610205932251,1.9155,1216.0,1215.9,54.00959]
[1610205932451,42.23428472,1216.0,1215.9,54.00959]
[1610205932652,42.23428472,1216.0,1215.9,50.0]
[1610205932852,42.23428472,1216.0,1215.8,59.2344]
[1610205933654,4.00959,1215.9,1215.8,63.24399]
[1610205933853,4.00959,1215.9,1215.8,13.24399]
[1610205934655,1.9155,1216.0,1215.8,13.24399]
[1610205934854,1.9155,1216.0,1215.8,63.24399]
[1610205935759,1.9155,1216.0,1215.9,50.0]
[1610205936662,21.50959,1216.1,1215.9,50.0]
[1610205937261,21.50959,1216.1,1216.0,50.0]
[1610205937661,21.50959,1216.1,1216.0,54.00959]
[1610205938063,21.50959,1216.1,1216.0,63.37829]
[1610205938763,21.50959,1216.1,1216.0,113.37829]
[1610205939463,61.85022538,1216.1,1216.0,113.37829]
[1610205939863,21.50959,1216.1,1216.0,109.3687]
[1610205940063,21.50959,1216.1,1216.0,59.3687]
[1610205940463,61.85786577,1216.1,1216.0,59.3687]
[1610205941065,42.02648161,1216.1,1216.0,59.3687]
[1610205942066,44.37056871,1216.1,1216.0,59.3687]
[1610205942666,46.54556871,1216.1,1216.0,59.3687]
[1610205943267,46.54556871,1216.1,1216.0,49.7546]
[1610205943468,34.07563529,1216.1,1216.0,49.7546]
[1610205944067,34.07563529,1216.1,1215.4,50.0]
[1610205944669,40.28586452,1215.7,1215.4,50.0]
[1610205944869,40.28586452,1215.7,1215.6,50.0]
[1610205944870,41.96006452,1215.7,1215.6,50.0]
[1610205945469,41.96006452,1215.7,1215.2,50.0]
[1610205945676,4.00959,1215.3,1215.2,50.0]
[1610205945870,6.36049,1215.3,1214.8,54.00959]
[1610205946470,6.36049,1215.3,1214.8,50.0]
[1610205946871,2.3509,1215.3,1214.8,50.0]
[1610205947271,42.58216782,1215.3,1214.8,50.0]
[1610205947673,4.00959,1214.9,1214.8,50.0]
[1610205947872,6.47239,1214.9,1214.8,50.0]
[1610205948473,6.47239,1214.9,1214.6,54.1502]
[1610205949273,2.4628,1214.9,1214.6,54.1502]
[1610205949676,6.47239,1214.9,1214.8,4.00959]
[1610205950075,6.47239,1214.9,1214.6,54.1502]
[1610205951674,6.47239,1214.9,1214.8,4.00959]
[1610205951875,6.47239,1214.9,1214.8,54.00959]
[1610205952275,6.47239,1214.9,1214.8,4.00959]
[1610205952476,6.47239,1214.9,1214.6,54.1502]
[1610205952677,6.47239,1214.9,1214.7,50.0]
[1610205953380,6.47239,1214.9,1214.6,54.1502]
[1610205953783,6.47239,1214.9,1214.8,50.0]
[1610205953981,6.47239,1214.9,1214.7,50.0]
[1610205954181,6.47239,1214.9,1214.6,58.15979]
[1610205954381,6.47239,1214.9,1214.8,50.0]
[1610205954781,6.47239,1214.9,1214.6,58.15979]
[1610205954982,2.4628,1214.9,1214.6,58.15979]
[1610205955182,42.67287424,1215.3,1214.6,58.15979]
[1610205955384,2.3509,1215.3,1214.6,58.15979]
[1610205955582,40.33089097,1215.4,1214.8,50.0]
[1610205955782,4.00959,1215.4,1215.2,4.00959]
[1610205957382,4.00959,1215.4,1215.2,54.00959]
[1610205957982,4.00959,1215.4,1215.2,50.0]
[1610205958582,4.00959,1215.4,1215.2,7.3795]
[1610205958783,40.33933616,1215.5,1215.2,7.3795]
[1610205958984,12.4676112,1215.6,1215.2,7.3795]
[1610205958985,40.33575358,1215.6,1215.2,7.3795]
[1610205959183,40.33575358,1215.6,1215.4,51.126]
[1610205959483,42.02303991,1215.7,1215.4,51.126]
[1610205959683,42.02303991,1215.7,1215.6,4.00959]
[1610205960487,1.6742,1215.7,1215.6,4.00959]
[1610205960686,40.39004295,1215.8,1215.6,4.00959]
[1610205960886,16.49587444,1215.9,1215.6,4.00959]
[1610205960887,44.40756214,1215.9,1215.6,4.00959]
[1610205961086,44.40756214,1215.9,1215.6,54.00959]
[1610205961490,40.38543889,1215.8,1215.6,54.00959]
[1610205961688,42.41183889,1215.8,1215.6,4.00959]
[1610205961888,42.41183889,1215.8,1215.7,50.0]
[1610205962088,2.0264,1215.8,1215.7,50.0]
[1610205962287,2.0264,1215.8,1215.7,57.7537]
[1610205965089,2.0264,1215.8,1215.7,50.0]
[1610205966991,19.675,1216.1,1215.7,50.0]
[1610205967190,19.675,1216.1,1215.8,56.3217]
[1610205967791,19.675,1216.1,1216.0,4.00959]
[1610205967991,19.675,1216.1,1216.0,11.17879]
[1610205971896,23.68459,1216.1,1216.0,11.17879]
[1610205972393,23.68459,1216.1,1216.0,7.1692]
[1610205972795,64.20146713,1216.1,1216.0,7.1692]
[1610205976800,23.68459,1216.1,1216.0,7.1692]
[1610205977199,64.20420576,1216.1,1216.0,7.1692]
[1610205977799,66.54802605,1216.1,1213.7,1.0058744]
[1610205978000,4.00959,1215.9,1215.8,50.0]
[1610205978201,4.00959,1215.9,1215.8,42.6753]
[1610205978603,7.02782865,1215.9,1215.8,42.6753]
[1610205978803,19.54532934,1215.9,1215.8,42.6753]
[1610205979004,19.54532934,1215.9,1215.5,111.9372]
[1610205979207,40.46155177,1215.7,1215.5,50.0]
[1610205979405,42.75535177,1215.7,1215.5,50.0]
[1610205979606,40.44331712,1215.6,1215.5,50.0]
[1610205980004,44.45290712,1215.6,1215.5,50.0]
[1610205980204,16.51295033,1215.6,1215.5,50.0]
[1610205980404,21.87548991,1215.6,1215.5,50.0]
[1610205981805,9.37212958,1215.6,1215.5,50.0]
[1610205982208,21.87364392,1215.6,1215.5,50.0]
[1610205982506,9.37212958,1215.6,1215.5,50.0]
[1610205983607,14.40415206,1215.6,1215.5,50.0]
[1610205985309,14.40415206,1215.6,1215.2,68.5952]
[1610205985809,40.40667879,1215.3,1215.2,68.5952]
[1610205986009,44.41626879,1215.3,1215.2,68.5952]
[1610205986210,6.39989,1215.3,1215.2,68.5952]
[1610205986711,2.3903,1215.3,1215.2,68.5952]
[1610205988115,2.3903,1215.3,1215.2,72.60479]
[1610205989015,2.3903,1215.3,1215.2,122.60479]
[1610205990016,6.39989,1215.3,1215.2,50.0]
[1610205990416,6.39989,1215.3,1215.1,50.0]
[1610205991420,6.39989,1215.3,1215.0,50.0]
[1610205991620,46.78699893,1215.3,1215.0,50.0]
[1610205992119,4.00959,1215.1,1215.0,50.0]
[1610205992620,4.00959,1215.1,1214.8,55.5897]
[1610205994122,4.00959,1214.9,1214.8,55.5897]
[1610205994322,6.26329,1214.9,1213.8,1.6772]
[1610205994523,6.26329,1214.9,1214.2,64.2662]
[1610205994723,6.26329,1214.9,1213.7,1.7572]
[1610205994924,6.26329,1214.9,1213.7,54.0932]
[1610205995524,6.26329,1214.9,1214.7,50.0]
[1610205995925,40.30219323,1214.8,1214.7,50.0]
[1610205996326,15.48243826,1214.8,1214.7,50.0]
[1610205996525,20.51678036,1214.8,1213.8,1.25818728]
[1610205996926,40.26752055,1214.5,1213.8,1.25818728]
[1610205997126,42.19512055,1214.5,1213.8,1.25818728]
[1610205997327,42.19512055,1214.5,1213.7,52.336]
[1610205998127,42.19512055,1214.5,1214.2,7.1875]
[1610205998328,1.9276,1214.5,1214.2,7.1875]
[1610206000032,4.00959,1214.3,1214.2,7.1875]
[1610206001734,4.00959,1214.3,1214.2,57.1875]
[1610206001935,1.9276,1214.5,1214.2,50.0]
[1610206002134,1.9276,1214.5,1214.3,107.60399]
[1610206002135,4.00959,1214.5,1214.3,107.60399]
[1610206002333,42.57758289,1214.9,1214.3,107.60399]
[1610206002535,2.2537,1214.9,1214.4,50.0]
[1610206002736,40.35756248,1215.1,1214.4,50.0]
[1610206002935,40.35756248,1215.1,1214.5,50.0]
[1610206003134,40.35756248,1215.1,1214.3,57.60399]
[1610206003335,40.35756248,1215.1,1214.6,50.0]
[1610206003735,40.36105627,1215.0,1214.4,50.0]
[1610206003933,42.08855627,1215.0,1214.4,50.0]
[1610206004136,4.00959,1214.7,1214.6,50.0]
[1610206004336,5.77609,1214.7,1214.6,50.0]
[1610206004534,5.77609,1214.7,1214.5,50.0]
[1610206004734,5.77609,1214.7,1214.2,56.8484]
[1610206005936,46.09716972,1214.7,1214.2,56.8484]
[1610206006135,4.00959,1214.3,1214.2,56.8484]
[1610206007439,4.00959,1214.3,1214.2,106.8484]
[1610206007841,2.5458,1214.4,1214.2,106.8484]
[1610206008039,2.5458,1214.4,1214.3,50.0]
[1610206008239,2.5458,1214.4,1214.3,54.00959]
[1610206010446,2.5458,1214.4,1214.3,50.0]
[1610206010845,2.5458,1214.4,1214.2,106.8484]
[1610206011345,4.00959,1214.5,1214.2,106.8484]
[1610206011545,4.00959,1214.5,1214.2,56.8484]
[1610206011944,4.00959,1214.5,1214.2,106.8484]
[1610206012147,4.00959,1214.5,1214.3,4.00959]
[1610206012347,4.00959,1214.5,1214.3,54.00959]
[1610206012646,4.00959,1214.5,1214.4,50.0]
[1610206013448,1.7665,1214.7,1214.4,50.0]
[1610206013649,42.09733572,1215.0,1214.6,67.942]
[1610206014149,4.00959,1214.7,1214.6,67.942]
[1610206014350,6.57649,1214.7,1214.6,117.942]
[1610206014750,6.57649,1214.7,1214.6,67.942]
[1610206020356,6.57649,1214.7,1214.5,50.0]
[1610206020556,6.57649,1214.7,1214.3,57.8027]
[1610206022157,2.5669,1214.7,1214.4,4.00959]
[1610206022558,40.43940851,1214.9,1214.4,4.00959]
[1610206023661,2.32863618,1214.8,1214.4,54.00959]
[1610206024161,4.00959,1214.5,1214.4,54.00959]
[1610206024361,6.47729,1214.5,1214.4,54.00959]
[1610206024763,6.47729,1214.5,1214.4,4.00959]
[1610206025162,6.47729,1214.5,1214.4,54.00959]
[1610206026861,6.47729,1214.5,1214.4,4.00959]
[1610206027564,6.47729,1214.5,1214.3,107.8027]
[1610206027863,6.47729,1214.5,1214.3,57.8027]
[1610206028565,6.47729,1214.5,1214.4,50.0]
[1610206028965,6.47729,1214.5,1214.3,57.8027]
[1610206029564,6.47729,1214.5,1214.3,107.8027]
[1610206029964,6.47729,1214.5,1214.3,57.8027]
[1610206032268,6.47729,1214.5,1214.3,107.8027]
[1610206032674,6.47729,1214.5,1214.3,57.8027]
[1610206032973,6.47729,1214.5,1214.3,107.8027]
[1610206034075,6.47729,1214.5,1214.4,50.0]
[1610206034777,6.47729,1214.5,1214.3,57.8027]
[1610206037380,6.47729,1214.5,1214.4,50.0]
[1610206038981,6.47729,1214.5,1214.3,50.0]
[1610206039181,36.47729,1214.5,1214.3,50.0]
[1610206039781,76.96083295,1214.5,1214.3,50.0]
[1610206040180,42.79545,1214.4,1214.3,50.0]
[1610206040582,30.95637677,1214.4,1214.3,50.0]
[1610206041182,10.38704421,1214.4,1214.3,50.0]
[1610206041485,5.35146943,1214.4,1214.3,50.0]
[1610206041786,17.86168793,1214.4,1214.3,50.0]
[1610206042788,10.38711719,1214.4,1214.3,50.0]
[1610206043588,10.38711719,1214.4,1213.9,50.0]
[1610206043790,40.43782323,1214.2,1213.9,50.0]
[1610206043990,42.09212323,1214.2,1213.9,50.0]
[1610206044391,4.00959,1214.0,1213.9,50.0]
[1610206044791,1.6543,1214.2,1213.9,50.0]
[1610206045190,1.6543,1214.2,1213.8,54.3038]
[1610206045390,1.6543,1214.2,1214.0,50.0]
[1610206046391,4.00959,1214.1,1214.0,50.0]
[1610206046593,4.00959,1214.1,1213.9,50.0]
[1610206047592,4.00959,1214.1,1213.8,54.3038]
[1610206048398,4.00959,1214.1,1213.9,4.00959]
[1610206048795,4.00959,1214.1,1214.0,50.0]
[1610206049897,1.6543,1214.2,1214.0,50.0]
[1610206050098,1.6543,1214.2,1213.9,4.00959]
[1610206050297,1.6543,1214.2,1214.1,4.00959]
[1610206050497,2.4677,1214.5,1214.1,55.55449]
[1610206050699,4.00959,1214.6,1214.1,55.55449]
[1610206052299,4.00959,1214.6,1214.4,4.00959]
[1610206052499,4.00959,1214.6,1214.5,6.8135]
[1610206054602,4.00959,1214.6,1214.5,56.8135]
[1610206058104,4.00959,1214.6,1214.5,6.8135]
[1610206058504,4.00959,1214.6,1214.5,56.8135]
[1610206059505,5.92729,1214.6,1214.5,56.8135]
[1610206060405,1.9177,1214.6,1214.5,50.0]
[1610206063508,1.9177,1214.6,1214.5,100.1131]
[1610206064406,4.00959,1214.9,1214.5,100.1131]
[1610206064609,4.00959,1214.9,1214.8,4.00959]
[1610206064809,4.00959,1214.9,1214.8,13.37239]
[1610206065507,4.00959,1214.9,1214.8,9.3628]
[1610206066708,4.00959,1214.9,1214.8,59.3628]
[1610206067408,4.00959,1214.9,1214.8,50.0]
[1610206068408,4.00959,1214.9,1214.8,99.5918]
[1610206093341,4.00959,1214.9,1214.8,50.0]
[1610206093538,1.7275,1215.0,1214.8,50.0]
[1610206093741,2.3903,1215.3,1214.8,50.0]
[1610206093943,53.71825048,1215.4,1214.8,50.0]
[1610206094143,53.76571866,1215.5,1214.8,50.0]
[1610206094342,53.76571866,1215.5,1215.4,54.2716]
[1610206095041,57.77530866,1215.5,1215.4,54.2716]
[1610206095643,60.12014601,1215.5,1215.4,54.2716]
[1610206095843,60.12014601,1215.5,1215.4,104.2716]
[1610206096444,60.12014601,1215.5,1215.4,54.2716]
[1610206097346,60.12014601,1215.5,1215.4,104.2716]
[1610206097949,6.35442735,1215.5,1215.4,104.2716]
[1610206099950,8.84942735,1215.5,1215.4,104.2716]
[1610206100352,6.50459,1215.5,1215.4,104.2716]
[1610206101052,6.50459,1215.5,1215.4,108.28119]
[1610206101652,2.495,1215.5,1215.4,108.28119]
[1610206103055,2.495,1215.5,1215.4,104.2716]
[1610206103254,6.50459,1215.5,1215.4,104.2716]
[1610206104955,6.50459,1215.5,1215.4,54.2716]
[1610206108858,6.50459,1215.5,1215.4,104.2716]
[1610206109258,6.50459,1215.5,1215.4,108.28119]
[1610206110360,6.50459,1215.5,1215.4,58.28119]
[1610206110561,2.495,1215.5,1215.4,58.28119]
[1610206110961,53.76132226,1215.7,1215.4,58.28119]
[1610206111164,57.77091226,1215.7,1215.4,58.28119]
[1610206111361,57.77091226,1215.7,1215.4,108.28119]
[1610206112761,2.34428381,1215.6,1215.4,108.28119]
[1610206112961,4.04248381,1215.6,1215.4,108.28119]
[1610206113162,4.00959,1215.5,1215.4,58.28119]
[1610206113865,4.00959,1215.5,1215.4,108.28119]
[1610206114264,4.00959,1215.5,1215.4,58.28119]
[1610206114765,4.00959,1215.5,1215.4,108.28119]
[1610206118072,1.6982,1215.6,1215.4,108.28119]
[1610206118270,53.72432781,1215.8,1215.4,108.28119]
[1610206118470,53.72432781,1215.8,1215.5,50.0]
[1610206118769,53.73925117,1215.9,1215.5,50.0]
[1610206119170,2.31331238,1215.7,1215.5,50.0]
[1610206119572,2.31331238,1215.7,1215.6,50.0]
[1610206120771,2.31331238,1215.7,1215.5,50.0]
[1610206121371,2.31331238,1215.7,1215.6,4.00959]
[1610206121973,2.31331238,1215.7,1215.6,54.00959]
[1610206124877,2.31279188,1215.8,1215.7,68.2027]
[1610206125174,2.31279188,1215.8,1215.7,118.2027]
[1610206125376,6.32238188,1215.8,1215.7,118.2027]
[1610206125574,6.32238188,1215.8,1215.7,50.0]
[1610206127275,6.32238188,1215.8,1215.7,54.00959]
[1610206127476,6.32238188,1215.8,1215.7,69.49829]
[1610206127678,6.32238188,1215.8,1215.7,4.00959]
[1610206128079,6.32238188,1215.8,1214.8,2.0364]
[1610206128276,6.32238188,1215.8,1215.5,50.0]
[1610206128475,6.32238188,1215.8,1215.6,56.559]
[1610206128876,4.00959,1215.8,1215.6,56.559]
[1610206129276,57.75853717,1215.8,1215.6,56.559]
[1610206129879,53.73318143,1215.7,1215.6,56.559]
[1610206130279,56.0467425,1215.7,1215.6,56.559]
[1610206135883,2.31356107,1215.7,1215.6,56.559]
[1610206138985,56.04493267,1215.7,1215.6,56.559]
[1610206139187,2.31356107,1215.7,1215.6,56.559]
[1610206139788,2.31356107,1215.7,1215.6,106.559]
[1610206141288,2.31356107,1215.7,1215.6,56.559]
[1610206141790,2.31356107,1215.7,1215.3,50.0]
[1610206142596,2.31356107,1215.7,1215.6,46.3312]
[1610206142996,4.00959,1215.8,1215.6,46.3312]
[1610206144898,4.00959,1215.8,1215.6,96.3312]
[1610206146001,4.00959,1215.8,1215.6,46.3312]
[1610206146800,4.00959,1215.8,1215.5,54.00959]
[1610206147400,4.00959,1215.8,1215.7,4.00959]
[1610206148401,73.76136821,1216.1,1215.7,4.00959]
[1610206148603,73.76136821,1216.1,1215.7,54.00959]
[1610206149203,73.76136821,1216.1,1215.8,50.0]
[1610206149403,4.00959,1215.9,1215.8,50.0]
[1610206149603,4.00959,1215.9,1215.8,102.8745]
[1610206151304,73.76136821,1216.1,1215.8,50.0]
[1610206151506,24.03699,1216.1,1216.0,4.00959]
[1610206152606,26.34872623,1216.1,1216.0,4.00959]
[1610206154007,24.03699,1216.1,1216.0,4.00959]
[1610206154806,24.03699,1216.1,1216.0,54.00959]
[1610206158512,24.03699,1216.1,1216.0,114.02369]
[1610206158814,24.03699,1216.1,1216.0,64.02369]
[1610206162217,24.03699,1216.1,1216.0,60.0141]
[1610206163816,24.03699,1216.1,1216.0,110.0141]
[1610206164816,24.03699,1216.1,1216.0,50.0]
[1610206165221,94.97558929,1216.1,1216.0,50.0]
[1610206165616,70.13041058,1216.1,1216.0,50.0]
[1610206166217,84.72240708,1216.1,1216.0,50.0]
[1610206166717,57.03476211,1216.1,1216.0,50.0]
[1610206166917,87.03476211,1216.1,1216.0,50.0]
[1610206167118,87.03476211,1216.1,1215.9,50.0]
[1610206167518,30.68175736,1216.0,1215.9,50.0]
[1610206167719,60.68175736,1216.0,1215.9,50.0]
[1610206168119,62.99448413,1216.0,1215.6,58.3962]
[1610206168319,32.99448413,1216.0,1215.6,58.3962]
[1610206168620,40.87057748,1215.7,1215.6,58.3962]
[1610206168819,53.51437877,1215.8,1215.6,58.3962]
[1610206169621,4.00959,1215.7,1215.6,58.3962]
[1610206170020,44.88793611,1215.7,1215.6,58.3962]
[1610206170321,57.53036528,1215.7,1215.6,58.3962]
[1610206170920,59.84328826,1215.7,1215.6,58.3962]
[1610206173223,6.32251298,1215.7,1215.6,58.3962]
[1610206173823,4.00959,1215.7,1215.6,58.3962]
[1610206174825,57.50401592,1215.7,1215.6,58.3962]
[1610206175728,89.76971592,1215.7,1215.6,58.3962]
[1610206175928,51.92981989,1215.7,1215.6,58.3962]
[1610206176127,56.96013478,1215.7,1215.6,58.3962]
[1610206176431,59.27310292,1215.7,1215.6,58.3962]
[1610206177730,29.27310292,1215.7,1215.6,58.3962]
[1610206177930,62.12516136,1215.7,1215.6,58.3962]
[1610206179833,62.32084548,1215.7,1215.6,58.3962]
[1610206180034,54.24286736,1215.7,1215.6,58.3962]
[1610206180234,67.32194625,1215.7,1215.6,58.3962]
[1610206180633,59.27328232,1215.7,1215.6,58.3962]
[1610206181235,46.63691852,1215.7,1215.6,58.3962]
[1610206182636,59.28964536,1215.7,1215.6,58.3962]
[1610206182936,92.15899444,1215.7,1215.6,58.3962]